[Event "French-ch U12-U14 2024"]
[Site "Agen"]
[Date "2024.04.14"]
[Round "1.15"]
[White "Castagnerol, Cerise"]
[Black "Martin, Sarah"]
[Result "1-0"]
[ECO "D12"]
[WhiteElo "1755"]
[BlackElo "1498"]
[Annotator "NA RC"]
[PlyCount "115"]
[EventDate "2024.04.14"]
[EventType "swiss"]
[EventCountry "FRA"]
[SourceTitle "playchess.com"]
[Source "ChessBase"]
[SourceQuality "1"]
[TimeControl "5400+30"]

1. d4 {[%emt 0:00:02]} d5 {[%emt 0:00:08]} 2. c4 {[%emt 0:00:09]} c6 {[%emt 0:00:09]} 3. Nf3 {[%emt 0:00:14]} Nf6 {[%emt 0:00:18]} 4. e3 {[%emt 0:00:23]} Bf5 {[%emt 0:00:14]} 5. Nc3 {[%emt 0:00:43]} e6 {[%emt 0:00:51]} 6. Bd3 {[%emt 0:01:29]} Bxd3 {[%emt 0:01:51]} 7. Qxd3 {[%emt 0:00:11]} Bb4 {[%emt 0:03:20]} 8. O-O {[%emt 0:01:09]} O-O {[%emt 0:00:33]} 9. b3 {[%emt 0:02:22]} Bxc3 {[%emt 0:01:19]} 10. Qxc3 {[%emt 0:00:10]} Ne4 {[%emt 0:00:27]} 11. Qb4 {[%emt 0:02:58]} Qc7 {[%emt 0:01:14]} 12. Ba3 {[%emt 0:02:01]} Nd7 {[%emt 0:00:34]} 13. Rfd1 {[%emt 0:02:08]} Rfe8 {[%emt 0:00:27]} 14. Rac1 {[%emt 0:01:16]} a5 {[%emt 0:00:34]} 15. Qe1 {[%emt 0:02:15]} h6 {[%emt 0:04:03]} 16. Nd2 {[%emt 0:05:25]} Ndf6 {[%emt 0:02:04]} 17. f3 {[%emt 0:00:59]} Nxd2 {[%emt 0:00:44]} 18. Rxd2 {[%emt 0:01:36]} e5 {[%emt 0:01:51]} 19. cxd5 {[%emt 0:03:15]} Nxd5 {[%emt 0:00:51]} 20. e4 {[%emt 0:04:36]} exd4 {[%emt 0:02:38]} 21. Rxd4 {[%emt 0:01:57]} Nf4 {[%emt 0:00:44]} 22. Rcd1 {[%emt 0:26:17]} Qb6 {[%emt 0:01:15]} 23. Kh1 {[%emt 0:00:40]} Ne6 {[%emt 0:06:00]} 24. Rc4 {[%emt 0:01:55]} Qb5 {[%emt 0:03:45]} 25. Bd6 {[%emt 0:01:54]} a4 {[%emt 0:06:26]} 26. Rb4 {[%emt 0:01:22]} Qa5 {[%emt 0:02:45]} 27. Rxb7 {[%emt 0:01:39]} Qxe1+ {[%emt 0:01:20]} 28. Rxe1 {[%emt 0:00:02]} axb3 {[%emt 0:00:32]} 29. axb3 {[%emt 0:00:12]} Nd4 {[%emt 0:00:25]} 30. h3 {[%emt 0:01:35]} Red8 {[%emt 0:01:26]} 31. e5 {[%emt 0:01:54]} Nb5 {[%emt 0:01:07]} 32. Rd1 {[%emt 0:02:08]} Nxd6 {[%emt 0:04:42]} 33. exd6 {[%emt 0:02:57]} Rab8 {[%emt 0:01:31]} 34. Rxb8 {[%emt 0:00:18]} Rxb8 {[%emt 0:00:06]} 35. Rd3 {[%emt 0:00:10]} Rd8 {[%emt 0:00:41]} 36. Kg1 {[%emt 0:03:38]} Kf8 {[%emt 0:00:07]} 37. Kf2 {[%emt 0:03:36]} f6 {[%emt 0:00:16]} 38. f4 {[%emt 0:01:17]} f5 {[%emt 0:00:16]} 39. g4 {[%emt 0:02:41]} g6 {[%emt 0:00:25]} 40. gxf5 {[%emt 0:00:49]} gxf5 {[%emt 0:00:29]} 41. Kg3 {[%emt 0:00:16]} Kf7 {[%emt 0:00:35]} 42. Kh4 {[%emt 0:00:22]} Ke6 {[%emt 0:04:07]} 43. Kh5 {[%emt 0:00:30]} Kf6 {[%emt 0:01:04]} 44. d7 {[%emt 0:00:49]} Ke6 {[%emt 0:01:45]} 45. Kxh6 {[%emt 0:01:16]} Kf6 {[%emt 0:03:55]} 46. Kh7 {[%emt 0:00:44]} Ke6 {[%emt 0:04:04]} 47. Kg7 {[%emt 0:00:48]} Rxd7+ {[%emt 0:03:39]} 48. Rxd7 {[%emt 0:00:08]} Kxd7 {[%emt 0:00:04]} 49. h4 {[%emt 0:00:04]} Kd6 {[%emt 0:00:09]} 50. h5 {[%emt 0:00:08]} Kd5 {[%emt 0:00:05]} 51. Kg6 {[%emt 0:00:32]} Kc5 {[%emt 0:00:23]} 52. h6 {[%emt 0:00:15]} Kb4 {[%emt 0:00:42]} 53. h7 {[%emt 0:00:07]} Kxb3 {[%emt 0:00:08]} 54. h8=Q {[%emt 0:00:11]} c5 {[%emt 0:00:08]} 55. Kxf5 {[%emt 0:00:18]} c4 {[%emt 0:00:12]} 56. Kg6 {[%emt 0:00:08]} c3 {[%emt 0:00:27]} 57. Qxc3+ {[%emt 0:00:08]} Kxc3 {[%emt 0:00:13]} 58. f5 {[%emt 0:00:02]} 1-0

[Event "French-ch U12-U14 2024"]
[Site "Agen"]
[Date "2024.04.14"]
[Round "1.16"]
[White "Breuil, Virgile"]
[Black "Carriou, Antoine"]
[Result "1-0"]
[ECO "C45"]
[WhiteElo "2307"]
[BlackElo "1757"]
[Annotator "TA"]
[PlyCount "51"]
[EventDate "2024.04.14"]
[EventType "swiss"]
[EventCountry "FRA"]
[SourceTitle "playchess.com"]
[Source "ChessBase"]
[SourceQuality "1"]
[TimeControl "5400+30"]

{[%evp 17,51,45,55,42,29,26,39,23,155,62,65,62,77,83,60,68,81,145,754,780,702,677,1093,-614,1093,1093,1076,1075,1053,1045,1012,1010,967,952,1438,1373]} 1. e4 {[%emt 0:00:04]} e5 {[%emt 0:00:09]} 2. Nf3 {[%emt 0:00:13]} Nc6 {[%emt 0:00:08]} 3. d4 {[%emt 0:00:18]} exd4 {[%emt 0:00:14]} 4. Nxd4 {[%emt 0:00:15]} Qh4 {[%emt 0:00:26]} 5. Nc3 {[%emt 0:01:05]} Bb4 {[%emt 0:00:23]} 6. Be2 {[%emt 0:01:05]} Qxe4 {[%emt 0:00:33]} 7. Ndb5 {[%emt 0:00:56]} Bxc3+ {[%emt 0:00:28]} 8. bxc3 {[%emt 0:00:36]} Kd8 {[%emt 0:00:49]} 9. O-O {[%emt 0:01:22]} Nf6 {[%emt 0:00:47]} 10. Bg5 {[%emt 0:10:26][%mdl 1024] White has compensation.} d6 {[%emt 0:00:36]} 11. Re1 {[%emt 0:04:16]} (11. Nxd6 $2 cxd6 12. Bxf6+ gxf6 $19) 11... Bd7 {[%emt 0:00:45]} 12. Qd2 {[%emt 0:05:50] White is slightly better.} (12. Nd4 {simplifies} Nxd4 13. cxd4 Qf5 14. Bh4) 12... Re8 {[%emt 0:02:36] [#]} (12... h6 $11 {keeps the balance.} 13. Bxf6+ gxf6) 13. Rad1 {[%emt 0:05:44]} (13. Bd3 $1 $16 Qd5 14. Rxe8+ (14. Bxh7 $2 Rxe1+ 15. Rxe1 Qxd2 $19) 14... Bxe8 15. Re1) 13... Qf5 {[%emt 0:07:00]} 14. Bd3 {[%emt 0:02:21] This pair of bishops is nice.} Rxe1+ {[%emt 0:03:18]} 15. Rxe1 {[%emt 0:00:07]} Qc5 {[%emt 0:04:17]} 16. Bxf6+ {[%emt 0:01:52]} gxf6 {[%emt 0:00:42]} 17. Qh6 $1 $36 {[%emt 0:00:15][%mdl 2048] [#] Qf8+ would kill now. White is in control. White is more active.} Ne5 $2 {[%emt 0:03:27][%mdl 8192]} (17... Kc8 $16) 18. Qxf6+ $18 {[%emt 0:01:23]} Ke8 {[%emt 0:03:32]} 19. Nd4 {[%emt 0:03:50]} Qxc3 {[%emt 0:07:02]} 20. Qh8+ {[%emt 0:00:17]} Ke7 {[%emt 0:00:18]} 21. Rxe5+ {[%emt 0:00:09] White is clearly winning.} dxe5 {[%emt 0:00:29]} 22. Qxe5+ {[%emt 0:00:13]} (22. Qxa8 exd4 23. Qxb7 Qe1+ 24. Bf1 d3 25. cxd3 Qa5 $16) 22... Kd8 {[%emt 0:06:29]} 23. Qh8+ {[%emt 0:01:58]} (23. Bxh7 $2 {gets mated.} Qa1+) 23... Ke7 {[%emt 0:00:26]} 24. Nf5+ {[%emt 0:00:08]} ({Less strong is} 24. Qxa8 Qxd4 25. Qxb7 Kd6 26. Qa6+ (26. Bxh7 $2 Qd1#) 26... Bc6 $16) 24... Bxf5 {[%emt 0:02:01]} 25. Qxc3 {[%emt 0:00:09]} Rd8 {[%emt 0:06:07]} 26. Qc5+ {[%emt 0:58:38] Weighted Error Value: White=0.86/Black=0.26 (precise) .  Loses game:     	---       	Black=1      Mistake:       	White=1     	Black=1      OK:         	White=2     	Black=3      Best:        	White=1     	Black=1      Strong:       	White=1     	---} (26. Bxf5 $2 {leads to mate.} Rd1+) 1-0

[Event "French-ch U12-U14 2024"]
[Site "Agen"]
[Date "2024.04.14"]
[Round "1.17"]
[White "Beguin, Loic"]
[Black "Boulos, Paul"]
[Result "0-1"]
[ECO "D59"]
[WhiteElo "1755"]
[BlackElo "2189"]
[Annotator "TA"]
[PlyCount "42"]
[EventDate "2024.04.14"]
[EventType "swiss"]
[EventCountry "FRA"]
[SourceTitle "playchess.com"]
[Source "ChessBase"]
[SourceQuality "1"]
[TimeControl "5400+30"]

{[%evp 20,42,8,0,12,0,17,0,0,-90,-87,-93,-84,-109,-98,-129,-136,-105,-83,-143,-161,-241,-181,-594,-575]} 1. d4 {[%emt 0:00:03]} d5 {[%emt 0:00:36]} 2. c4 {[%emt 0:00:06]} e6 {[%emt 0:00:12]} 3. Nc3 {[%emt 0:00:10]} Nf6 {[%emt 0:00:20]} 4. Bg5 {[%emt 0:00:11]} Be7 {[%emt 0:00:52]} 5. Nf3 {[%emt 0:00:13]} O-O {[%emt 0:01:00]} 6. e3 {[%emt 0:00:14]} h6 {[%emt 0:00:25]} 7. Bh4 {[%emt 0:00:07]} b6 {[%emt 0:00:46]} 8. cxd5 {[%emt 0:01:09]} Nxd5 {[%emt 0:00:57]} 9. Bxe7 {[%emt 0:02:22]} Qxe7 {[%emt 0:00:43]} 10. Nxd5 {[%emt 0:02:34]} exd5 {[%emt 0:00:12]} 11. Be2 {[%emt 0:01:42]} Rd8 {[%emt 0:01:22]} 12. Rc1 {[%emt 0:01:51]} Bf5 {[%emt 0:03:40]} 13. Rc3 {[%emt 0:15:05]} c5 {[%emt 0:01:04] The position is equal.} 14. Qc1 {[%emt 0:03:10] [#]} (14. dxc5 $11 bxc5 15. Qc1) 14... c4 $1 $17 {[%emt 0:02:15]} 15. b3 {[%emt 0:01:53]} b5 {[%emt 0:01:03] aiming for ...b4.} 16. bxc4 {[%emt 0:00:18]} bxc4 {[%emt 0:00:53]} 17. Nd2 {[%emt 0:01:38]} Nc6 {[%emt 0:03:28]} 18. O-O {[%emt 0:07:08]} Rab8 {[%emt 0:01:48]} 19. Bf3 {[%emt 0:06:11]} (19. a3 $142) 19... Nb4 {[%emt 0:09:17] Black is much more active.} 20. Qa3 {[%emt 0:01:34]} (20. Qb2 $142) 20... Rb6 {[%emt 0:07:39] [#] And now ...Ra6 would win.} 21. Re1 $2 {[%emt 0:10:43]} (21. Ra1 {is more resistant.}) 21... Ra6 {[%emt 0:02:05] Weighted Error Value: White=0.74/Black=0.14 (very precise) .  Mistake:       	White=4     	---        Inaccurate:     	White=1     	---        OK:         	White=1     	Black=4      Best:        	---       	Black=1      Strong:       	---       	Black=1} 0-1

[Event "French-ch U12-U14 2024"]
[Site "Agen"]
[Date "2024.04.14"]
[Round "1.18"]
[White "Borne, Felix"]
[Black "Letellier, Louis-Gabriel"]
[Result "1-0"]
[ECO "D36"]
[WhiteElo "2163"]
[BlackElo "1755"]
[Annotator "TA"]
[PlyCount "84"]
[EventDate "2024.04.14"]
[EventType "swiss"]
[EventCountry "FRA"]
[SourceTitle "playchess.com"]
[Source "ChessBase"]
[SourceQuality "1"]
[TimeControl "5400+30"]

{[%evp 14,84,18,18,33,33,38,16,32,39,30,10,4,11,12,7,4,14,13,18,6,-26,-7,-54,-50,-54,-14,-19,0,-16,93,88,86,94,96,100,196,197,361,341,349,348,340,355,385,262,599,602,769,736,515,477,506,636,643,650,938,938,897,1028,863,905,795,639,29977,29958,29982,6131,29980,29981,29980,29981,29981]} 1. d4 {[%emt 0:00:03]} Nf6 {[%emt 0:00:05]} 2. c4 {[%emt 0:00:05]} e6 {[%emt 0:00:05]} 3. Nc3 {[%emt 0:00:05]} d5 {[%emt 0:00:42]} 4. cxd5 {[%emt 0:00:06]} exd5 {[%emt 0:01:05]} 5. Bg5 {[%emt 0:00:07]} Be7 {[%emt 0:03:34]} 6. e3 {[%emt 0:00:07]} h6 {[%emt 0:08:22]} 7. Bh4 {[%emt 0:01:20]} c6 {[%emt 0:07:36]} 8. Qc2 {[%emt 0:00:06]} Bg4 {[%emt 0:01:25]} 9. Bd3 {[%emt 0:04:38]} Nbd7 {[%emt 0:12:05]} 10. Nge2 {[%emt 0:13:07]} Nb6 {[%emt 0:13:18] The position is equal.} 11. O-O {[%emt 0:03:58]} O-O {[%emt 0:02:28]} 12. h3 {[%emt 0:19:51]} Bxe2 {[%emt 0:10:08]} 13. Nxe2 {[%emt 0:09:48]} Ne4 {[%emt 0:01:43]} 14. Bxe7 {[%emt 0:00:29]} Qxe7 {[%emt 0:00:38]} 15. Bxe4 {[%emt 0:00:05]} Qxe4 {[%emt 0:00:55]} 16. Qxe4 {[%emt 0:01:17]} dxe4 {[%emt 0:00:08]} 17. f3 {[%emt 0:06:49]} Rfe8 {[%emt 0:07:13] next ...Nc4 is good for Black.} 18. Ng3 {[%emt 0:05:19]} (18. Kf2 $11) 18... exf3 $15 {[%emt 0:08:46]} 19. Rxf3 {[%emt 0:00:06]} Nc4 {[%emt 0:02:34]} 20. Nf5 {[%emt 0:03:46]} Kh7 {[%emt 0:05:20][%cal Og7g6]} (20... Nxb2 21. Rg3 (21. Rb1 Nc4 $16) 21... g6 22. Nxh6+ (22. Rb1 Nc4 $11) 22... Kg7 23. Nf5+ Kf8 24. Nd6 $14) 21. Rd1 {[%emt 0:00:50]} g6 {[%emt 0:01:32]} (21... Nxb2 $6 22. Rb1 Nc4 23. Rxb7 $16) (21... Rad8 $11) 22. b3 $1 $16 {[%emt 0:00:08] White now steadily converts the win.} gxf5 {[%emt 0:05:02]} 23. bxc4 {[%emt 0:00:01][%mdl 4096] Endgame. KRR-KRR} Kg6 {[%emt 0:02:58][%cal Of5f4]} 24. Rdf1 {[%emt 0:00:45]} c5 {[%emt 0:00:56]} 25. Rxf5 $18 {[%emt 0:02:02]} (25. dxc5 $6 Re5 $14) 25... cxd4 $2 {[%emt 0:00:48] [#]} (25... Re7 26. Rxc5 Rxe3) 26. Rf6+ {[%emt 0:00:15]} (26. exd4 Re7 27. Rc5 Re4 $18) (26. Rxf7 Re4 27. R1f6+ (27. Rxb7 dxe3 28. Rc7 a5 $14) 27... Kg5 $18) 26... Kg7 {[%emt 0:01:09]} 27. Rxf7+ {[%emt 0:00:02]} (27. exd4 Re7 28. Rd6 b6 $16) 27... Kg8 {[%emt 0:00:41]} 28. exd4 {[%emt 0:00:11]} (28. Rxb7 dxe3 29. Re1 Rac8 $16) 28... Re4 {[%emt 0:00:28]} 29. R1f4 {[%emt 0:01:03]} ({But not} 29. Rxb7 Rxd4 30. Rf6 h5 31. Rg6+ Kh8 32. Rh6+ Kg8 33. Rxh5 Rxc4 34. Rg5+ Kh8 35. Rh5+ Kg8 $18) 29... Re2 $2 {[%emt 0:01:00]} (29... Rxd4 {is more resistant.} 30. Rxd4 Kxf7 31. Rd7+ Kf6 32. Rxb7 Rc8) 30. Rxb7 {[%emt 0:01:01]} Rxa2 {[%emt 0:00:23]} 31. Rf6 {[%emt 0:00:33]} a5 {[%emt 0:01:55]} 32. Rg6+ {[%emt 0:00:01]} Kf8 {[%emt 0:00:53]} 33. Rxh6 {[%emt 0:00:02]} Kg8 {[%emt 0:00:12] Wards off Rh8+} 34. Rbh7 {[%emt 0:01:25]} Rf8 {[%emt 0:00:34]} 35. Rh8+ {[%emt 0:00:50]} Kg7 {[%emt 0:00:08]} 36. R6h7+ {[%emt 0:00:04]} Kg6 {[%emt 0:00:10]} 37. Rxf8 {[%emt 0:00:21][%cal Oc4c5] [#] Threatening mate with c5!} Kxh7 {[%emt 0:00:07] KR-KR} 38. c5 {[%emt 0:00:22][%cal Bc4c5,Bc5c6][%mdl 32] c6 would kill now.} a4 {[%emt 0:01:03][%cal Ba5a4,Ba4a3,Ba3a2][%mdl 32]} 39. c6 {[%emt 0:00:12]} a3 {[%emt 0:00:31]} 40. d5 {[%emt 0:00:55]} (40. c7 $142 Ra1+ 41. Kh2 Rc1 42. c8=Q (42. c8=B a2 $16) 42... Rxc8 43. Rxc8 Kg6 44. Ra8 Kf7 45. h4 (45. Rxa3 Ke6 46. Ra5 Kf7 47. Re5 Kf6 48. Re1 Kg6 49. d5 Kh7)) 40... Ra1+ {[%emt 0:01:00]} 41. Kh2 {[%emt 0:00:07]} a2 {[%emt 0:00:42]} 42. Ra8 {[%emt 0:00:05]} Rc1 {[%emt 0:01:08] Weighted Error Value: White=0.13 (very precise) /Black=0.44.  Mistake:       	White=1     	Black=4      Inaccurate:     	White=2     	Black=1      OK:         	White=8     	Black=6      Best:        	White=4     	Black=1      Strong:       	White=1     	---} 1-0

[Event "French-ch U12-U14 2024"]
[Site "Agen"]
[Date "2024.04.14"]
[Round "1.19"]
[White "Tirateau, Tom"]
[Black "Auribault, Louis"]
[Result "0-1"]
[ECO "B09"]
[WhiteElo "1748"]
[BlackElo "2137"]
[Annotator "TA"]
[PlyCount "34"]
[EventDate "2024.04.14"]
[EventType "swiss"]
[EventCountry "FRA"]
[SourceTitle "playchess.com"]
[Source "ChessBase"]
[SourceQuality "1"]
[TimeControl "5400+30"]

{[%evp 11,34,15,25,-47,-36,-41,-30,-64,-32,-74,-19,-18,-19,-40,-22,-147,-148,-139,-123,-558,-557,-559,-560,-541,-538]} 1. e4 {[%emt 0:00:05]} d6 {[%emt 0:00:14]} 2. d4 {[%emt 0:00:24]} Nf6 {[%emt 0:00:26]} 3. Nc3 {[%emt 0:00:15]} g6 {[%emt 0:00:59]} 4. f4 {[%emt 0:00:38]} Bg7 {[%emt 0:00:13]} 5. Nf3 {[%emt 0:00:59]} O-O {[%emt 0:00:11]} 6. Be2 {[%emt 0:02:25]} c5 {[%emt 0:02:16]} 7. e5 {[%emt 0:04:04]} (7. a3 $11) 7... Nfd7 $15 {[%emt 0:03:24]} 8. exd6 {[%emt 0:06:39]} exd6 {[%emt 0:01:30]} 9. Be3 {[%emt 0:05:31] Black has an edge.} Nc6 {[%emt 0:10:55]} 10. O-O {[%emt 0:03:46]} Nf6 {[%emt 0:05:27]} (10... cxd4 $17 11. Nxd4 Qb6) 11. dxc5 $11 {[%emt 0:06:22]} Ng4 {[%emt 0:00:27]} 12. Bc1 {[%emt 0:07:29]} Qa5 {[%emt 0:14:44]} (12... dxc5 {simplifies} 13. Qxd8 Rxd8 14. h3 Nh6) 13. Qe1 {[%emt 0:09:00]} (13. Ne4 $11 {remains equal.}) 13... Qxc5+ $17 {[%emt 0:00:24]} 14. Kh1 {[%emt 0:00:23]} Re8 {[%emt 0:01:59] Strongly threatening ...Nb4. Black is much more active.} 15. Na4 $2 {[%emt 0:07:34][%mdl 8192] [#]} (15. h3 $17 {is tougher.} Nf6 16. Bd2) 15... Qxc2 $19 {[%emt 0:02:12] Black is clearly winning.} 16. Nc3 {[%emt 0:07:15]} Bxc3 {[%emt 0:00:11]} 17. Qxc3 {[%emt 0:00:33]} Qxc3 {[%emt 0:00:30] Weighted Error Value: White=0.93/Black=0.11 (very precise) .  Loses game:     	White=1     	---        Mistake:       	White=1     	Black=1      Inaccurate:     	White=2     	---        OK:         	White=4     	Black=4      Best:        	White=1     	Black=3} ({Weaker is} 17... Qxe2 18. Re1 $11) 0-1

[Event "French-ch U12-U14 2024"]
[Site "Agen"]
[Date "2024.04.14"]
[Round "1.20"]
[White "Khoury, Theo"]
[Black "Vijay, Soukreev"]
[Result "1-0"]
[ECO "A28"]
[WhiteElo "2086"]
[BlackElo "1747"]
[Annotator "TA"]
[PlyCount "71"]
[EventDate "2024.04.14"]
[EventType "swiss"]
[EventCountry "FRA"]
[SourceTitle "playchess.com"]
[Source "ChessBase"]
[SourceQuality "1"]
[TimeControl "5400+30"]

{[%evp 14,71,51,27,54,0,0,0,29,-12,0,0,9,-30,33,32,38,25,20,18,23,20,25,0,12,0,31,-16,-9,-22,-37,-68,-82,-133,-74,-74,-70,-75,-75,-74,-81,-79,-47,-51,-45,-113,-133,-161,-127,-190,-200,-208,-207,-207,-8,-8,0,-189,29986,29986]} 1. e4 {[%emt 0:00:10]} e5 {[%emt 0:00:09]} 2. Nf3 {[%emt 0:00:11]} Nc6 {[%emt 0:00:05]} 3. d4 {[%emt 0:00:05]} exd4 {[%emt 0:00:07]} 4. Nxd4 {[%emt 0:00:04]} d6 {[%emt 0:00:33]} 5. c4 {[%emt 0:01:32]} Nf6 {[%emt 0:01:08]} 6. Nc3 {[%emt 0:00:07]} Be7 {[%emt 0:01:12]} 7. Be2 {[%emt 0:01:05]} O-O {[%emt 0:02:59]} 8. O-O {[%emt 0:00:18]} Re8 {[%emt 0:02:23]} 9. f4 {[%emt 0:03:28]} (9. Be3 $14) 9... Nxd4 $11 {[%emt 0:07:13]} 10. Qxd4 {[%emt 0:00:09]} b6 {[%emt 0:00:17][%cal Od6d5] Threatens to win with ...d5! The position is equal.} 11. Kh1 {[%emt 0:01:48]} Bb7 {[%emt 0:01:07]} 12. Bf3 {[%emt 0:01:10]} Nd7 {[%emt 0:08:00]} 13. Nd5 {[%emt 0:05:06]} Bxd5 {[%emt 0:07:23]} (13... c6 $11 14. Nc3 Bf6) 14. Qxd5 {[%emt 0:00:16]} Rb8 {[%emt 0:00:47] Black is weak on the light squares} 15. Be3 {[%emt 0:00:35]} Bf6 {[%emt 0:04:10]} 16. Rf2 {[%emt 0:07:48]} Nc5 {[%emt 0:16:21][%cal Oc5e4]} 17. Re2 {[%emt 0:16:54]} Ne6 {[%emt 0:06:45]} 18. Rf1 {[%emt 0:03:34]} a6 {[%emt 0:05:22]} 19. g4 {[%emt 0:03:17]} b5 {[%emt 0:10:06]} 20. g5 {[%emt 0:00:13] [#]} (20. e5 $14 dxe5 21. fxe5) 20... Bd4 $1 {[%emt 0:11:19]} 21. Bc1 {[%emt 0:06:23]} (21. Bxd4 c6 $15) (21. Bg2 Bxe3) 21... Ba7 {[%emt 0:03:41] Hoping for ...Nd4.} 22. Rg2 {[%emt 0:01:49][%cal Og5g6]} Nd4 $1 {[%emt 0:04:11] aiming for ...c6.} 23. e5 {[%emt 0:09:36] [#]} (23. Bh5 $142 Qe7 24. e5 (24. g6 hxg6 25. Bxg6 Qe6 $17)) 23... Nxf3 {[%emt 0:04:20]} (23... c6 $142 $1 {[%cal Rc6d5]} 24. Qe4 bxc4) 24. Qxf3 $17 {[%emt 0:00:29]} dxe5 {[%emt 0:01:24]} 25. fxe5 {[%emt 0:00:10]} Qd7 {[%emt 0:00:30]} 26. cxb5 {[%emt 0:05:40]} Rxb5 {[%emt 0:00:55]} 27. Bf4 {[%emt 0:00:20]} Qe6 {[%emt 0:00:54]} 28. Rc2 {[%emt 0:01:58]} Bb6 {[%emt 0:00:24]} 29. Rd1 {[%emt 0:00:58]} (29. b3 $15) 29... Qxa2 {[%emt 0:00:39]} 30. Qc6 {[%emt 0:01:08][%cal Rc6e8]} Qe6 {[%emt 0:00:31]} 31. Qe4 {[%emt 0:02:40]} (31. Qxe6 $17 {was worth a try.} fxe6 32. h4) 31... a5 $19 {[%emt 0:00:29]} 32. Rcd2 {[%emt 0:02:41]} Rb4 {[%emt 0:00:26]} 33. Qf3 {[%emt 0:00:10]} Qe7 $2 {[%emt 0:00:36]} ({Better is} 33... Rf8 $19 {And now ...Qf5 would win.} 34. Bg3 Rb3) 34. Rd7 $1 $11 {[%emt 0:00:20]} Qe6 {[%emt 0:00:18]} 35. Rd8 $2 {[%emt 0:01:22]} (35. R7d2 $1 $11) 35... Qe7 $4 {[%emt 0:00:25][%mdl 8192]} ({Weaker is} 35... Rxb2 36. Qa8 Kf8 37. Rxe8+ Qxe8 38. Rd8 f6 39. Rxe8+ Kf7 40. g6+ (40. e6+ Kg6 $18) 40... Kxg6 41. Qe4+ (41. Bc1 Re2 42. exf6 Rxe8 43. Qxe8+ Kxf6 44. Bb2+ Kg5 45. Qe6 h6 46. Bxg7 Bd4) 41... Kf7 42. e6+ Kxe8 43. Qc6+ (43. Qxh7 Kf8 44. Qh8+ Ke7 45. Qg8 Rb1+ 46. Kg2 Rb2+ 47. Kh3 Rb3+ 48. Kg4 f5+ 49. Kg5 Rg3+ 50. hxg3 Bf2 51. Qf7+ Kd8 52. Qf8#) 43... Kf8 44. Bd6+ (44. Bxc7 g5 $18) 44... cxd6 45. Qxd6+ Ke8 46. Qd7+ Kf8 47. Qf7#) (35... c6 $19 36. Rxe8+ Qxe8) 36. Qa8 {[%emt 0:00:22] Weighted Error Value: White=0.32/Black=0.35.  Loses game:     	White=1     	---        Missed win:     	---       	Black=2      Mistake:       	White=5     	Black=2      Inaccurate:     	White=3     	Black=3      OK:         	White=7     	Black=7      Best:        	White=1     	Black=1      Strong:       	White=1     	Black=1      Brilliant:      	---       	Black=1} 1-0

[Event "French-ch U12-U14 2024"]
[Site "Agen"]
[Date "2024.04.15"]
[Round "2.1"]
[White "Wang, Emma"]
[Black "Benhadid, Jeilynn"]
[Result "1/2-1/2"]
[ECO "B30"]
[WhiteElo "1872"]
[BlackElo "1844"]
[Annotator "NA RC"]
[PlyCount "66"]
[EventDate "2024.04.14"]
[EventType "swiss"]
[EventCountry "FRA"]
[SourceTitle "playchess.com"]
[Source "ChessBase"]
[SourceQuality "1"]
[TimeControl "5400+30"]

1. e4 {[%emt 0:00:01]} c5 {[%emt 0:00:15]} 2. Nc3 {[%emt 0:00:14]} Nc6 {[%emt 0:00:28]} 3. Nf3 {[%emt 0:00:24]} g6 {[%emt 0:00:25]} 4. Bc4 {[%emt 0:01:35]} Bg7 {[%emt 0:02:45]} 5. O-O {[%emt 0:01:44]} d6 {[%emt 0:04:43]} 6. d3 {[%emt 0:04:30]} Nf6 {[%emt 0:02:15] 6...e6 gains popularity.} 7. h3 {[%emt 0:03:02]} O-O {[%emt 0:00:56]} 8. a3 {[%emt 0:03:48] B30: Sicilian: 2...Nc6 3 Bb5, lines without ...g6.} a6 {[%emt 0:09:10]} 9. Be3 {[%emt 0:04:40]} b5 {[%emt 0:07:39]} 10. Ba2 {[%emt 0:05:59]} Nd7 {[%emt 0:11:04]} 11. Qc1 {[%emt 0:07:07]} Bb7 $146 {[%emt 0:03:42]} ({Predecessor:} 11... Nd4 12. Bxd4 cxd4 13. Ne2 Qb6 14. c3 dxc3 15. Nxc3 Bb7 16. Qd2 Nf6 17. Rac1 Rac8 {0-1 Thowsen,A (1161)-Bo,M (1191) As Autumn 2016 (7)}) 12. Bh6 {[%emt 0:04:19]} Nb6 {[%emt 0:05:54]} 13. Bxg7 {[%emt 0:02:07]} Kxg7 {[%emt 0:00:07]} 14. Ng5 {[%emt 0:03:31]} Nd4 {[%emt 0:03:53]} 15. Qd2 {[%emt 0:05:08]} d5 $11 {[%emt 0:03:32]} 16. exd5 {[%emt 0:04:32]} Nxd5 {[%emt 0:00:19]} 17. Nxd5 {[%emt 0:00:37]} Bxd5 {[%emt 0:00:16]} 18. Bxd5 {[%emt 0:00:47]} Qxd5 {[%emt 0:00:08]} 19. Ne4 {[%emt 0:02:39]} Rfd8 {[%emt 0:03:49]} 20. Nc3 {[%emt 0:04:48]} Qd7 {[%emt 0:01:33]} 21. Ne2 {[%emt 0:02:39]} Ne6 {[%emt 0:05:18]} 22. Rad1 {[%emt 0:03:16]} Rac8 {[%emt 0:02:57]} 23. Rfe1 {[%emt 0:01:47]} Rc6 {[%emt 0:08:08]} 24. b3 {[%emt 0:05:06]} Nd4 {[%emt 0:03:07]} 25. Nxd4 {[%emt 0:03:05]} cxd4 {[%emt 0:00:53]} 26. Re2 {[%emt 0:00:52]} Rdc8 {[%emt 0:01:08]} 27. Rc1 {[%emt 0:02:36]} Qc7 {[%emt 0:03:32]} 28. Qg5 {[%emt 0:02:50]} f6 {[%emt 0:01:52]} 29. Qd5 {[%emt 0:01:10]} Rd8 {[%emt 0:01:57]} 30. Rxe7+ {[%emt 0:01:48]} Qxe7 {[%emt 0:02:22]} 31. Qxc6 {[%emt 0:00:10]} Qxa3 {[%emt 0:01:59]} 32. Re1 {[%emt 0:01:19]} Qd6 {[%emt 0:00:37]} 33. Re6 {[%emt 0:02:28]} Qxc6 {[%emt 0:01:58]} 1/2-1/2